fUST/lending_fUST_20240922
["ID","MTS","AMOUNT","RATE_DAILY","PERIOD"]
[338872073,1726969840970,-151.0,0.00015224,2]
[338872074,1726969840980,-1197.587726,0.00015224,2]
[338872075,1726969840989,-1197.587726,0.00015224,2]
[338872076,1726969840998,-151.0,0.00015224,2]
[338872077,1726969841007,-159.629129,0.00015224,2]
[338872078,1726969841017,-159.629129,0.00015224,2]
[338872079,1726969841027,-151.0,0.00015224,2]
[338872080,1726969841037,-152.238028,0.00015224,2]
[338872081,1726969841047,-151.0,0.00015225,2]
[338872082,1726969841057,-151.0,0.00015225,2]
[338872083,1726969841067,-151.0,0.00015225,2]
[338872084,1726969841076,-152.850016,0.00015225,2]
[338872085,1726969841086,-151.0,0.00015225,2]
[338872086,1726969841096,-151.0,0.00015225,2]
[338872087,1726969841106,-152.692567,0.00015225,2]
[338872088,1726969841116,-151.0,0.00015225,2]
[338872089,1726969841126,-151.0,0.00015225,2]
[338872090,1726969841135,-167.908814,0.00015225,2]
[338872091,1726969841145,-167.908814,0.00015225,2]
[338872092,1726969841155,-167.908814,0.00015225,2]
[338872093,1726969841165,-167.908814,0.00015225,2]
[338872094,1726969841175,-162.644095,0.00015225,2]
[338872095,1726969841184,-162.644095,0.00015225,2]
[338872096,1726969841195,-211.199003,0.00015225,2]
[338872097,1726969841205,-162.644095,0.00015225,2]
[338872098,1726969841215,-162.644095,0.00015225,2]
[338872099,1726969841224,-151.0,0.00015225,2]
[338872100,1726969841234,-151.0,0.00015225,2]
[338872101,1726969841245,-151.0,0.00015225,2]
[338872102,1726969841259,-151.0,0.00015225,2]
[338872103,1726969841269,-151.902349,0.00015225,2]
[338872104,1726969841278,-151.0,0.00015225,2]
[338872105,1726969841287,-151.0,0.00015225,2]
[338872106,1726969841298,-171.946958,0.00015225,2]
[338872107,1726969841308,-151.0,0.00015225,2]
[338872108,1726969841317,-151.0,0.00015225,2]
[338872109,1726969841327,-500.0,0.00015234,2]
[338872110,1726969841338,-500.0,0.00015234,2]
[338872111,1726969841348,-500.77,0.00015234,2]
[338872112,1726969841357,-500.0,0.00015234,2]
[338872113,1726969841366,-500.0,0.00015234,2]
[338872114,1726969841376,-500.0,0.00015234,2]
[338872115,1726969841386,-228.17923727,0.00015234,2]
[338872116,1726969841397,-500.0,0.00015234,2]
[338872117,1726969841406,-500.0,0.00015234,2]
[338872118,1726969841416,-535.92505983,0.00015234,2]
[338872119,1726969841431,-383.8421144,0.00015234,2]
[338872120,1726969841441,-500.0,0.00015234,2]
[338872121,1726969841452,-500.0,0.00015234,2]
[338872122,1726969841461,-624.00713249,0.00015234,2]
[338872123,1726969841471,-500.0,0.00015234,2]
[338872124,1726969841481,-510.37347817,0.00015234,2]
[338872125,1726969841491,-151.0,0.00015235,2]
[338872126,1726969841500,-167.908814,0.00015235,2]
[338872127,1726969841511,-167.908814,0.00015235,2]
[338872128,1726969841522,-500.0,0.00015273,2]
[338872129,1726969841532,-266.46190118,0.00015273,2]
[338872130,1726969841542,-171.47439212,0.00015273,2]
[338872131,1726969841551,-500.0,0.00015273,2]
[338872132,1726969841562,-500.0,0.00015273,2]
[338872133,1726969841572,-151.0,0.00015273,2]
[338872134,1726969841581,-151.0,0.00015273,2]
[338872135,1726969841591,-162.644095,0.00015273,2]
[338872136,1726969841600,-162.644095,0.00015273,2]
[338872137,1726969841611,-151.0,0.00015273,2]
[338872138,1726969841620,-151.0,0.00015273,2]
[338872139,1726969841630,-151.0,0.00015273,2]
[338872140,1726969841639,-500.0,0.00015357,2]
[338872141,1726969841649,-601.11738838,0.00015368,2]
[338872142,1726969841659,-1138.44,0.00015368,2]
[338872143,1726969841669,-500.0,0.00015368,2]
[338872144,1726969841680,-500.0,0.00015368,2]
[338872145,1726969841690,-500.0,0.0001547,2]
[338872146,1726969841699,-500.0,0.0001547,2]
[338872147,1726969841709,-473.89530143,0.0001548,2]
[338872148,1726969841718,-371.84133462,0.0001548,2]
[338872149,1726969841729,-500.0,0.0001548,2]
[338872150,1726969841738,-500.0,0.00015508,2]
[338872151,1726969841748,-500.0,0.00015508,2]
[338872152,1726969841757,-500.77,0.00015508,2]
[338872153,1726969841767,-500.0,0.00015508,2]
[338872154,1726969841776,-500.0,0.00015508,2]
[338872155,1726969841786,-500.0,0.00015508,2]
[338872156,1726969841795,-500.0,0.00015508,2]
[338872157,1726969841805,-536.24688069,0.00015508,2]
[338872158,1726969841814,-500.0,0.00015508,2]
[338872159,1726969841823,-452.58092475,0.00015508,2]
[338872160,1726969841834,-500.0,0.00015508,2]
[338872161,1726969841844,-151.0,0.00015508,2]
[338872162,1726969841854,-1197.587726,0.00015508,2]
[338872163,1726969841863,-1197.587726,0.00015508,2]
[338872164,1726969841873,-151.0,0.00015508,2]
[338872165,1726969841883,-159.629129,0.00015508,2]
[338872166,1726969841893,-159.629129,0.00015508,2]
[338872167,1726969841902,-156.264918,0.00015508,2]
[338872168,1726969841912,-152.238028,0.00015508,2]
[338872169,1726969841922,-501.43070769,0.00015631,2]
[338872170,1726969841932,-1138.44,0.00015642,2]
[338872171,1726969841942,-500.0,0.00015642,2]
[338872172,1726969841951,-500.0,0.00015642,2]
[338872173,1726969841961,-510.30741169,0.00015744,2]
[338872174,1726969841970,-504.21796394,0.00015744,2]
[338872175,1726969841980,-500.0,0.00015754,2]
[338872176,1726969841989,-35276.6067246,0.00015772,2]
[338872177,1726969841999,-577.21142527,0.00015772,2]
[338872178,1726969842008,-151.0,0.00015772,2]
[338872179,1726969842018,-1197.587726,0.00015772,2]
[338872180,1726969842027,-1197.587726,0.00015772,2]
[338872181,1726969842037,-151.0,0.00015772,2]
[338872182,1726969842047,-159.629129,0.00015772,2]
[338872183,1726969842056,-159.629129,0.00015772,2]
[338872184,1726969842065,-500.0,0.00015782,2]
[338872185,1726969842075,-500.0,0.00015782,2]
[338872186,1726969842084,-500.77,0.00015782,2]
[338872187,1726969842094,-500.0,0.00015782,2]
[338872188,1726969842103,-500.0,0.00015782,2]
[338872189,1726969842113,-500.0,0.00015782,2]
[338872190,1726969842123,-500.0,0.00015782,2]
[338872191,1726969842132,-509.5824469,0.00015782,2]
[338872192,1726969842142,-500.0,0.00015782,2]
[338872193,1726969842151,-1138.44,0.00015916,2]
[338872194,1726969842161,-500.0,0.00015916,2]
[338872195,1726969842170,-500.0,0.00015916,2]
[338872196,1726969842181,-381.98601,0.00016027,2]
[338872197,1726969842191,-500.0,0.00016028,2]
[338872198,1726969842200,-516.93321456,0.00016056,2]
[338872199,1726969842210,-500.0,0.00016056,2]
[338872200,1726969842219,-500.77,0.00016056,2]
[338872201,1726969842228,-500.0,0.00016056,2]
[338872202,1726969842238,-500.0,0.00016056,2]
[338872203,1726969842248,-500.0,0.00016056,2]
[338872204,1726969842260,-527.25307781,0.00016056,2]
[338872205,1726969842280,-509.36653232,0.00016056,2]
[338872206,1726969842291,-851.79707203,0.00016136,2]
[338872207,1726969842301,-1138.44,0.0001619,2]
[338872208,1726969842312,-154.48061048,0.0001619,2]
[338872209,1726969842321,-500.0,0.0001619,2]
[338872210,1726969842334,-151.0,0.00016225,2]
[338872211,1726969842345,-227.478004,0.00016225,2]
[338872212,1726969842356,-500.0,0.00016302,2]
[338872213,1726969842366,-515.458609,0.0001633,2]
[338872214,1726969842376,-500.77,0.0001633,2]
[338872215,1726969842387,-643.86921593,0.0001633,2]
[338872216,1726969842397,-500.0,0.0001633,2]
[338872217,1726969842406,-500.0,0.0001633,2]
[338872218,1726969842419,-151.0,0.0001633,2]
[338872219,1726969842430,-151.0,0.0001633,2]
[338872220,1726969842439,-151.0,0.0001633,2]
[338872221,1726969842449,-200.0,0.00016438,2]
[338872222,1726969842458,-200.0,0.00016438,2]
[338872223,1726969842468,-200.85136611,0.00016438,2]
[338872224,1726969842477,-1138.44,0.00016464,2]
[338872225,1726969842487,-500.0,0.00016464,2]
[338872226,1726969842496,-500.0,0.00016576,2]
[338872227,1726969842505,-500.77,0.00016604,2]
[338872228,1726969842514,-500.0,0.00016604,2]
[338872229,1726969842524,-228.55849213,0.00016604,2]
[338872230,1726969842533,-162.644095,0.00016642,2]
[338872231,1726969842543,-162.644095,0.00016642,2]
[338872232,1726969842552,-1000.0,0.00016642,2]
[338872233,1726969842562,-1000.0,0.00016642,2]
[338872234,1726969842571,-683.59381076,0.00016642,2]
[338872235,1726969842581,-1138.44,0.00016738,2]
[338872236,1726969842591,-500.0,0.00016738,2]
[338872237,1726969842600,-500.0,0.0001685,2]
[338872238,1726969842609,-500.77,0.00016878,2]
[338872239,1726969842619,-500.0,0.00016878,2]
[338872240,1726969842628,-176.25,0.00017,2]
[338872241,1726969842637,-1138.44,0.00017012,2]
[338872242,1726969842647,-500.0,0.00017012,2]
[338872244,1726969842656,-500.0,0.00017124,2]
[338872246,1726969842665,-500.77,0.00017152,2]
[338872247,1726969842676,-500.0,0.00017152,2]
[338872248,1726969842686,-1138.44,0.00017286,2]
[338872249,1726969842695,-500.0,0.00017286,2]
[338872250,1726969842705,-500.0,0.00017398,2]
[338872251,1726969842714,-151.0,0.00017398,2]
[338872252,1726969842724,-500.77,0.00017426,2]
[338872253,1726969842733,-500.0,0.00017426,2]
[338872254,1726969842743,-500.0,0.00017469,2]
[338872255,1726969842752,-508.09623837,0.00017469,2]
[338872256,1726969842762,-317.73137717,0.00017469,2]
[338872257,1726969842771,-500.0,0.00017469,2]
[338872258,1726969842781,-513.34779573,0.00017469,2]
[338872259,1726969842791,-508.72507036,0.00017469,2]
[338872260,1726969842801,-565.22171833,0.00017469,2]
[338872261,1726969842810,-509.00813234,0.00017469,2]
[338872262,1726969842819,-500.0,0.00017469,2]
[338872263,1726969842829,-503.18922232,0.00017469,2]
[338872264,1726969842838,-151.0,0.00017469,2]
[338872265,1726969842847,-151.0,0.00017469,2]
[338872266,1726969842857,-151.0,0.00017469,2]
[338872267,1726969842867,-167.908814,0.00017469,2]
[338872268,1726969842876,-167.908814,0.00017469,2]
[338872269,1726969842885,-244.219565,0.00017469,2]
[338872270,1726969842895,-1197.587726,0.00017469,2]
[338872271,1726969842904,-1197.587726,0.00017469,2]
[338872273,1726969842914,-159.629129,0.00017469,2]
[338872275,1726969842924,-159.629129,0.00017469,2]
[338872277,1726969842934,-500.0,0.0001747,2]
[338872278,1726969842944,-508.02371164,0.0001747,2]
[338872279,1726969842954,-500.0,0.0001747,2]
[338872280,1726969842964,-500.0,0.0001747,2]
[338872281,1726969842973,-501.52439688,0.0001747,2]
[338872282,1726969842982,-500.38172139,0.0001747,2]
[338872283,1726969842992,-1138.44,0.0001756,2]
[338872284,1726969843002,-500.0,0.0001756,2]
[338872285,1726969843011,-500.0,0.00017672,2]
[338872286,1726969843021,-35276.6067246,0.0001769,2]
[338872287,1726969843031,-577.21142527,0.0001769,2]
[338872288,1726969843041,-1197.587726,0.0001769,2]
[338872290,1726969843051,-1197.587726,0.0001769,2]
[338872292,1726969843062,-151.0,0.0001769,2]
[338872294,1726969843072,-159.629129,0.0001769,2]
[338872296,1726969843081,-159.629129,0.0001769,2]
[338872298,1726969843091,-151.0,0.000177,2]
[338872299,1726969843100,-500.77,0.000177,2]
[338872300,1726969843109,-500.0,0.000177,2]
[338872301,1726969843119,-151.0,0.000177,2]
[338872302,1726969843128,-151.0,0.000177,2]
[338872303,1726969843138,-165.778703,0.000177,2]
[338872304,1726969843148,-1197.587726,0.00017723,2]
[338872305,1726969843157,-1197.587726,0.00017723,2]
[338872306,1726969843168,-251.411282,0.00017723,2]
[338872308,1726969843188,-159.629129,0.00017723,2]
[338872310,1726969843198,-159.629129,0.00017723,2]
[338872311,1726969843207,-35276.6067246,0.00017723,2]
[338872312,1726969843217,-577.21142527,0.00017723,2]
[338872313,1726969843227,-151.0,0.00017733,2]
[338872314,1726969843237,-151.0,0.00017733,2]
[338872315,1726969843247,-151.0,0.00017733,2]
[338872316,1726969843259,-154.264186,0.00017733,2]
[338872317,1726969843268,-151.0,0.00017733,2]
[338872321,1726969843279,-151.0,0.00017733,2]
[338872322,1726969843454,-167.908814,0.00017733,2]
[338872323,1726969843464,-167.908814,0.00017733,2]
[338872324,1726969843474,-167.908814,0.00017733,2]
[338872325,1726969843484,-167.908814,0.00017733,2]
[338872326,1726969843494,-162.644095,0.00017733,2]
[338872327,1726969843505,-162.644095,0.00017733,2]
[338872328,1726969843516,-162.644095,0.00017733,2]
[338872329,1726969843526,-162.644095,0.00017733,2]
[338872330,1726969843535,-162.644095,0.00017733,2]
[338872331,1726969843546,-162.644095,0.00017733,2]
[338872332,1726969843556,-151.0,0.00017733,2]
[338872333,1726969843566,-151.0,0.00017733,2]
[338872334,1726969843575,-151.0,0.00017733,2]
[338872335,1726969843585,-154.314086,0.00017733,2]
[338872336,1726969843595,-500.0,0.00017743,2]
[338872337,1726969843605,-153.115859,0.00017743,2]
[338872338,1726969843614,-500.0,0.00017743,2]
[338872339,1726969843624,-151.0,0.00017743,2]
[338872340,1726969843635,-500.0,0.00017743,2]
[338872341,1726969843646,-500.0,0.00017744,2]
[338872342,1726969843657,-500.0,0.00017744,2]
[338872343,1726969843666,-505.60790218,0.00017744,2]
[338872344,1726969843679,-1138.44,0.00017834,2]
[338872345,1726969843689,-500.0,0.00017834,2]
[338872346,1726969843698,-500.0,0.00017944,2]
[338872347,1726969843708,-500.0,0.00017946,2]
[338872348,1726969843717,-500.77,0.00017974,2]
[338872349,1726969843727,-500.0,0.00017974,2]
[338872350,1726969843736,-151.0,0.00018007,2]
[338872351,1726969843745,-500.0,0.00018017,2]
[338872352,1726969843755,-500.0,0.00018017,2]
[338872353,1726969843764,-377.18891494,0.00018018,2]
[338872354,1726969843773,-505.69573157,0.00018018,2]
[338872355,1726969843783,-1138.44,0.00018108,2]
[338872356,1726969843792,-500.0,0.00018108,2]
[338872357,1726969843802,-633.4637,0.0001822,2]
[338872358,1726969843811,-500.77,0.00018248,2]
[338872359,1726969843820,-617.11981003,0.00018248,2]
[338872360,1726969843829,-577.21142527,0.00018282,2]
[338872361,1726969843839,-512.30793709,0.00018291,2]
[338872362,1726969843848,-500.0,0.00018291,2]
[338872363,1726969843857,-151.0,0.00018292,2]
[338872364,1726969843867,-1138.44,0.00018382,2]
[338872365,1726969843877,-306.66623063,0.00018382,2]
[338872366,1726969843886,-500.77,0.00018522,2]
[338872367,1726969843896,-500.0,0.00018565,2]
[338872368,1726969843905,-209.706563,0.00018566,2]
[338872369,1726969843914,-167.908814,0.00018566,2]
[338872370,1726969843924,-167.908814,0.00018566,2]
[338872371,1726969843933,-1197.587726,0.00018566,2]
[338872372,1726969843943,-1197.587726,0.00018566,2]
[338872373,1726969843953,-159.629129,0.00018566,2]
[338872374,1726969843962,-159.629129,0.00018566,2]
[338872375,1726969843972,-162.644095,0.00018645,2]
[338872376,1726969843982,-162.644095,0.00018645,2]
[338872377,1726969843992,-1500.0,0.00018646,2]
[338872378,1726969844002,-1501.38399531,0.00018646,2]
[338872379,1726969844012,-500.0,0.00018649,2]
[338872380,1726969844022,-500.0,0.00018649,2]
[338872381,1726969844034,-231.9399789,0.00018649,2]
[338872382,1726969844048,-500.0,0.00018649,2]
[338872383,1726969844059,-500.0,0.00018649,2]
[338872384,1726969844068,-255.21968715,0.00018649,2]
[338872385,1726969844078,-1138.44,0.00018656,2]
[338872386,1726969844087,-1101.53343096,0.00018691,2]
[338872387,1726969844097,-152.104047,0.00018706,2]
[338872388,1726969844107,-151.0,0.00018758,2]
[338872389,1726969844116,-577.21142527,0.00018791,2]
[338872390,1726969844125,-500.77,0.00018796,2]
[338872391,1726969844136,-151.0,0.000188,2]
[338872392,1726969844145,-151.0,0.00018801,2]
[338872393,1726969844155,-151.0,0.00018801,2]
[338872394,1726969844164,-167.908814,0.00018801,2]
[338872395,1726969844176,-167.908814,0.00018801,2]
[338872396,1726969844186,-167.908814,0.00018801,2]
[338872397,1726969844195,-167.908814,0.00018801,2]
[338872398,1726969844205,-162.644095,0.00018801,2]
[338872399,1726969844214,-162.644093,0.00018801,2]
[338872400,1726969844223,-263.25182,0.00018801,2]
[338872401,1726969844233,-151.0,0.00018811,2]
[338872402,1726969844242,-221.75777977,0.00018839,2]
[338872403,1726969844255,-1000.0,0.0001891,10]
[338872404,1726969844264,-200.0,0.0001891,10]
[338872405,1726969844274,-1138.44,0.0001893,2]
[338872406,1726969844283,-500.77,0.0001907,2]
[338872407,1726969844293,-169.414203,0.00019178,2]
[338872408,1726969844302,-305.792601,0.00019178,2]
[338872409,1726969844311,-1138.44,0.00019204,2]
[338872410,1726969844321,-577.21142527,0.00019236,3]
[338872411,1726969844333,-150.316,0.00019246,2]
[338872412,1726969844342,-171.70937213,0.00019246,2]
[338872413,1726969845835,-352.29062787,0.00019246,2]
[338872414,1726969845846,-1216.0,0.00019246,2]
[338872415,1726969845858,-278.445,0.00019246,2]
[338872416,1726969845869,-1000.0,0.00019314,2]
[338872417,1726969845880,-152.33985687,0.00019333,2]
[338872418,1726969845891,-151.0,0.00019334,2]
[338872419,1726969845901,-500.77,0.00019344,2]
[338872420,1726969845911,-291.922,0.00019379,2]
[338872421,1726969845921,-1138.44,0.00019478,2]
[338872422,1726969845932,-500.77,0.00019618,2]
[338872423,1726969845942,-151.0,0.00019633,2]
[338872424,1726969845952,-167.908814,0.00019638,2]
[338872425,1726969845962,-167.908808,0.00019638,2]
[338872426,1726969845972,-1197.587726,0.00019638,2]
[338872427,1726969845983,-1197.587734,0.00019638,2]
[338872428,1726969845995,-159.629129,0.00019638,2]
[338872429,1726969846006,-159.629135,0.00019638,2]
[338872430,1726969846017,-30684.89058077,0.00019638,2]
[338872431,1726969846029,-254.62836108,0.00019652,2]
[338872432,1726969846041,-1138.44,0.00019752,2]
[338872433,1726969846051,-166.92664132,0.00019753,2]
[338872434,1726969846061,-151.0,0.0001988,2]
[338872435,1726969846074,-151.0,0.0001988,2]
[338872436,1726969846085,-500.77,0.00019892,2]
[338872437,1726969846096,-2944.87000001,0.000199,2]
[338872438,1726969846106,-2390.99051117,0.0002,2]
[338872439,1726969846117,-1138.44,0.00020026,2]
[338872440,1726969846127,-1154.42285054,0.00020095,3]
[338872441,1726969846137,-175.518546,0.00020105,2]
[338872442,1726969846148,-3200.0,0.00020115,2]
[338872443,1726969846158,-282.366,0.00020115,2]
[338872444,1726969846168,-300.0,0.00020115,2]
[338872445,1726969846179,-500.77,0.00020166,2]
[338872446,1726969846189,-781.0040592,0.00020235,2]
[338872447,1726969846200,-1138.44,0.000203,2]
[338872448,1726969846210,-500.77,0.0002044,2]
[338872449,1726969846221,-153.0,0.0002049,2]
[338872450,1726969846231,-306.0,0.0002049,2]
[338872451,1726969846241,-153.0,0.0002049,2]
[338872452,1726969846252,-153.0,0.0002049,2]
[338872453,1726969846264,-153.0,0.0002049,2]
[338872454,1726969846274,-153.0,0.0002049,2]
[338872455,1726969846285,-153.0,0.0002049,2]
[338872456,1726969846296,-153.0,0.0002049,2]
[338872457,1726969846306,-153.0,0.0002049,2]
[338872458,1726969846316,-153.0,0.0002049,2]
[338872459,1726969846327,-153.0,0.0002049,2]
[338872460,1726969846338,-153.0,0.0002049,2]
[338872461,1726969846348,-153.0,0.0002049,2]
[338872462,1726969846358,-153.0,0.0002049,2]
[338872463,1726969846368,-1138.44,0.00020573,2]
[338872464,1726969846379,-500.77,0.00020714,2]
[338872465,1726969846389,-781.0040592,0.00020735,2]
[338872466,1726969846399,-1138.44,0.00020847,2]
[338872467,1726969846409,-810.0,0.000209,2]
[338872468,1726969846421,-2000.0,0.00020987,2]
[338872469,1726969846436,-500.77,0.00020988,2]
[338872470,1726969846447,-3000.0,0.00021,2]
[338872471,1726969846458,-500.0,0.00021,10]
[338872472,1726969846469,-3000.0,0.0002101,2]
[338872473,1726969846479,-577.21142527,0.0002101,3]
[338872474,1726969846490,-3209.72036667,0.00021018,30]
[338872475,1726969846500,-3000.0,0.0002102,2]
[338872476,1726969846510,-3000.0,0.0002103,2]
[338872477,1726969846521,-577.21142527,0.0002103,3]
[338872478,1726969846531,-3000.0,0.0002104,2]
[338872479,1726969846542,-3000.0,0.0002105,2]
[338872480,1726969846552,-3000.0,0.0002106,2]
[338872481,1726969846562,-3000.0,0.0002107,2]
[338872482,1726969846572,-3000.0,0.0002108,2]
[338872483,1726969846583,-3000.0,0.0002109,2]
[338872484,1726969846593,-3000.0,0.000211,2]
[338872485,1726969846603,-577.21142527,0.000211,3]
[338872486,1726969846614,-3000.0,0.0002111,2]
[338872487,1726969846625,-3000.0,0.0002112,2]
[338872488,1726969846636,-1138.50576612,0.00021121,2]
[338872489,1726969846647,-3000.0,0.0002113,2]
[338872490,1726969846658,-3000.0,0.0002114,2]
[338872491,1726969846669,-3000.0,0.0002115,2]
[338872492,1726969846680,-3000.0,0.0002116,2]
[338872493,1726969846690,-3000.0,0.0002117,2]
[338872494,1726969846701,-3000.0,0.0002118,2]
[338872495,1726969846712,-1154.42285054,0.0002118,3]
[338872496,1726969846722,-3000.0,0.0002119,2]
[338872497,1726969846732,-810.0,0.000212,2]
[338872498,1726969846743,-3000.0,0.000212,2]
[338872499,1726969846753,-3000.0,0.0002121,2]
[338872500,1726969846763,-3000.0,0.0002122,2]
[338872501,1726969846774,-3000.0,0.0002123,2]
[338872502,1726969846784,-781.0040592,0.00021235,2]
[338872503,1726969846794,-3104.95261,0.0002124,2]
[338872504,1726969846804,-500.77,0.00021262,2]
[338872505,1726969846814,-1500.0,0.00021317,2]
[338872506,1726969846825,-272.92379484,0.00021379,2]
[338872507,1726969846835,-7942.05173869,0.00021379,2]
[338872508,1726969846846,-306.0,0.00021449,2]
[338872509,1726969846856,-810.0,0.000215,2]
[338872510,1726969846867,-500.84858669,0.00021536,2]
[338872511,1726969846877,-781.0040592,0.00021735,2]
[338872512,1726969846888,-810.0,0.000218,2]
[338872513,1726969846897,-151.0,0.00021836,2]
[338872514,1726969846907,-166.666666,0.00021918,2]
[338872515,1726969846917,-500.0,0.00022,10]
[338872516,1726969846928,-198.96,0.0002202,2]
[338872517,1726969846939,-810.0,0.000221,2]
[338872518,1726969846949,-781.0040592,0.00022235,2]
[338872519,1726969846959,-150.0,0.00022246,2]
[338872520,1726969846969,-524.0,0.00022246,2]
[338872521,1726969846979,-1216.0,0.00022246,2]
[338872522,1726969846989,-810.0,0.000224,2]
[338872523,1726969847000,-166.666666,0.00022431,2]
[338872524,1726969847011,-153.0,0.00022555,2]
[338872525,1726969847021,-153.0,0.00022555,2]
[338872526,1726969847031,-153.0,0.00022555,2]
[338872527,1726969847044,-1101.53343096,0.00022559,2]
[338872528,1726969847055,-166.666666,0.00022944,2]
[338872529,1726969847067,-810.0,0.00023,2]
[338872530,1726969847077,-153.0,0.0002323,2]
[338872531,1726969847250,-827.5983629,0.0002323,2]
[338872532,1726969847260,-153.0,0.0002323,2]
[338872533,1726969847271,-153.0,0.0002323,2]
[338872534,1726969847280,-151.0,0.00023232,2]
[338872535,1726969847290,-166.666666,0.00023456,2]
[338872536,1726969847299,-2279.84899711,0.00023578,2]
[338872537,1726969847309,-810.0,0.000236,2]
[338872538,1726969847319,-2000.0,0.00023658,2]
[338872539,1726969847329,-166.666666,0.00023969,2]
[338872540,1726969847339,-302.72757545,0.00024,2]
[338872541,1726969847348,-302.72757545,0.00024,2]
[338872542,1726969847358,-1154.42285054,0.0002418,3]
[338872543,1726969847368,-810.0,0.000242,2]
[338872544,1726969847379,-302.72757545,0.0002424,2]
[338872545,1726969847388,-302.72757545,0.0002424,2]
[338872546,1726969847397,-166.92664132,0.0002438,2]
[338872547,1726969847406,-302.72757545,0.0002448,2]
[338872548,1726969847416,-302.72757545,0.0002448,2]
[338872549,1726969847428,-166.666666,0.00024482,2]
[338872550,1726969847438,-151.0,0.00024627,3]
[338872551,1726969847448,-380.0,0.00024658,2]
[338872552,1726969847459,-200.0,0.00024658,2]
[338872553,1726969847468,-200.0,0.00024658,15]
[338872554,1726969847478,-4761.1834923,0.000247,14]
[338872555,1726970170726,157.07,0.00014014,2]
[338872557,1726970391289,24900.0,0.00013992,2]
[338872558,1726970441724,10000.0,0.00014014,2]
[338872559,1726970459490,1000.0,0.00025,120]
[338872561,1726970595522,250.0,0.00013615,2]
[338872562,1726970795153,-3000.0,0.00014088,2]
[338872563,1726970795177,-200.0,0.00014096,2]
[338872564,1726970795200,-200.0,0.00014134,2]
[338872565,1726970795224,-200.0,0.00014173,2]
[338872566,1726970795249,-200.0,0.00014212,2]
[338872567,1726970795273,-200.0,0.0001425,2]
[338872568,1726970795297,-200.0,0.00014289,2]
[338872569,1726970795320,-200.0,0.00014328,2]
[338872570,1726970795342,-200.0,0.00014366,2]
[338872571,1726970795364,-200.0,0.00014405,2]
[338872572,1726970795386,-200.0,0.00014444,2]
[338872573,1726970795408,-200.0,0.00014482,2]
[338872574,1726970795431,-200.0,0.00014521,2]
[338872575,1726970795455,-200.0,0.0001456,2]
[338872576,1726970795479,-200.0,0.00014598,2]
[338872577,1726970795502,-200.0,0.00014637,2]
[338872578,1726970795526,-200.0,0.00014676,2]
[338872579,1726970795550,-200.0,0.00014714,2]
[338872580,1726970795573,-200.0,0.00014753,2]
[338872581,1726970795596,-200.0,0.00014792,2]
[338872582,1726970795619,-300.0,0.00014808,2]
[338872583,1726970795642,-300.0,0.00014808,2]
[338872584,1726970795667,-500.0,0.00014809,2]
[338872585,1726970795700,-500.0,0.00014809,2]
[338872586,1726970795906,-84.27681146,0.00014809,2]
[338872588,1726970830149,-300.0,0.00014808,2]
[338872589,1726970830173,-300.0,0.00014808,2]
[338872590,1726970830197,-415.72318854,0.00014809,2]